[Event "MČR juniorů a juniorek v rapid šachu 2024"]
[Site "Hotel Fit Fun, Harrachov, Czech Republic"]
[Date "2024.09.22"]
[Round "8.33"]
[White "Jun Rostislav"]
[Black "Martinkovicova Nela"]
[Result "1-0"]
[TimeControl "20+5"]
[WhiteFideId "23719524"]
[BlackFideId "23715596"]
[WhiteElo "1641"]
[BlackElo "1446"]

1. e4 {[%clk 00:20:08]} {[%emt 00:00:01]} e5 {[%clk 00:20:04]} {[%emt
00:00:06]} 2. d4 {[%clk 00:20:12]} {[%emt 00:00:01]} exd4 {[%clk 00:19:55]}
{[%emt 00:00:14]} 3. Qxd4 {[%clk 00:20:16]} {[%emt 00:00:02]} Nc6 {[%clk
00:19:53]} {[%emt 00:00:06]} 4. Qe3 {[%clk 00:20:19]} {[%emt 00:00:02]} g6
{[%clk 00:19:30]} {[%emt 00:00:28]} 5. Nc3 {[%clk 00:20:19]} {[%emt 00:00:05]}
Bg7 {[%clk 00:19:08]} {[%emt 00:00:27]} 6. Bd2 {[%clk 00:20:21]} {[%emt
00:00:03]} Nge7 {[%clk 00:19:06]} {[%emt 00:00:07]} 7. O-O-O {[%clk 00:20:23]}
{[%emt 00:00:04]} O-O {[%clk 00:19:04]} {[%emt 00:00:06]} 8. f4 {[%clk
00:20:21]} {[%emt 00:00:07]} d5 {[%clk 00:18:38]} {[%emt 00:00:31]} 9. exd5
{[%clk 00:20:06]} {[%emt 00:00:20]} Nxd5 {[%clk 00:18:27]} {[%emt 00:00:16]} 10.
Qg3 {[%clk 00:18:43]} {[%emt 00:01:23]} Nb6 {[%clk 00:17:16]} {[%emt 00:01:21]}
11. Nf3 {[%clk 00:17:30]} {[%emt 00:01:18]} Bf5 {[%clk 00:16:22]} {[%emt
00:00:59]} 12. Nh4 {[%clk 00:16:09]} {[%emt 00:01:26]} Qf6 {[%clk 00:15:47]}
{[%emt 00:00:40]} 13. Nxf5 {[%clk 00:15:44]} {[%emt 00:00:31]} Qxf5 {[%clk
00:15:30]} {[%emt 00:00:21]} 14. Bd3 {[%clk 00:14:57]} {[%emt 00:00:52]} Qd7
{[%clk 00:15:01]} {[%emt 00:00:33]} 15. a3 {[%clk 00:13:42]} {[%emt 00:01:21]}
Rfe8 {[%clk 00:14:33]} {[%emt 00:00:32]} 16. f5 {[%clk 00:13:01]} {[%emt
00:00:47]} Rac8 {[%clk 00:13:37]} {[%emt 00:01:01]} 17. h4 {[%clk 00:11:48]}
{[%emt 00:01:18]} Ne5 {[%clk 00:12:13]} {[%emt 00:01:29]} 18. fxg6 {[%clk
00:11:04]} {[%emt 00:00:49]} Nxd3+ {[%clk 00:12:02]} {[%emt 00:00:16]} 19. cxd3
{[%clk 00:11:02]} {[%emt 00:00:07]} fxg6 {[%clk 00:11:58]} {[%emt 00:00:09]} 20.
h5 {[%clk 00:10:50]} {[%emt 00:00:17]} Qd6 {[%clk 00:11:17]} {[%emt 00:00:47]}
21. Qh3 {[%clk 00:07:09]} {[%emt 00:03:45]} a6 {[%clk 00:09:57]} {[%emt
00:01:25]} 22. g4 {[%clk 00:06:01]} {[%emt 00:01:14]} Re7 {[%clk 00:08:59]}
{[%emt 00:01:02]} 23. g5 {[%clk 00:05:39]} {[%emt 00:00:27]} gxh5 {[%clk
00:08:05]} {[%emt 00:00:59]} 24. Ne4 {[%clk 00:03:36]} {[%emt 00:02:08]} Qe6
{[%clk 00:06:38]} {[%emt 00:01:32]} 25. Qxh5 {[%clk 00:02:41]} {[%emt
00:01:00]} Qg6 {[%clk 00:06:29]} {[%emt 00:00:14]} 26. Qh4 {[%clk 00:01:49]}
{[%emt 00:00:52]} Qc6+ {[%clk 00:06:16]} {[%emt 00:00:24]} 27. Kb1 {[%clk
00:01:53]} {[%emt 00:00:01]} Re5 {[%clk 00:05:59]} {[%emt 00:00:22]} 28. Qxh7+
{[%clk 00:01:25]} {[%emt 00:00:33]} Kf8 {[%clk 00:05:48]} {[%emt 00:00:15]} 29.
Rhf1+ {[%clk 00:01:27]} {[%emt 00:00:03]} 1-0



[ePGN "0.1;DGT LiveChess/2.2.6"]

[Event "MČR juniorů a juniorek v rapid šachu 2024"]
[Site "Hotel Fit Fun, Harrachov, Czech Republic"]
[Date "2024.09.22"]
[Round "8.34"]
[White "Vondra Filip"]
[Black "Dufkova Tereza"]
[Result "1/2-1/2"]
[TimeControl "20+5"]
[WhiteFideId "23725176"]
[BlackFideId "23744383"]
[WhiteElo "1598"]
[BlackElo "1601"]

1. e4 {[%clk 00:20:08]} {[%emt 00:00:01]} d5 {[%clk 00:20:09]} 2. exd5 {[%clk
00:20:08]} {[%emt 00:00:05]} Nf6 {[%clk 00:20:13]} {[%emt 00:00:02]} 3. Bb5+
{[%clk 00:20:05]} {[%emt 00:00:07]} Bd7 {[%clk 00:20:06]} {[%emt 00:00:12]} 4.
Be2 {[%clk 00:20:04]} {[%emt 00:00:06]} Nxd5 {[%clk 00:20:08]} {[%emt
00:00:02]} 5. d4 {[%clk 00:20:08]} {[%emt 00:00:02]} Bf5 {[%clk 00:19:17]}
{[%emt 00:00:56]} 6. Nc3 {[%clk 00:20:09]} {[%emt 00:00:04]} Nxc3 {[%clk
00:19:18]} {[%emt 00:00:04]} 7. bxc3 {[%clk 00:20:11]} {[%emt 00:00:03]} e6
{[%clk 00:19:15]} {[%emt 00:00:08]} 8. Nf3 {[%clk 00:20:11]} {[%emt 00:00:05]}
Bd6 {[%clk 00:19:08]} {[%emt 00:00:12]} 9. O-O {[%clk 00:19:55]} {[%emt
00:00:21]} Nd7 {[%clk 00:18:23]} {[%emt 00:00:50]} 10. c4 {[%clk 00:19:52]}
{[%emt 00:00:08]} c6 {[%clk 00:17:27]} {[%emt 00:01:00]} 11. c5 {[%clk
00:19:36]} {[%emt 00:00:22]} Bc7 {[%clk 00:17:24]} {[%emt 00:00:07]} 12. Bg5
{[%clk 00:18:59]} {[%emt 00:00:43]} f6 {[%clk 00:17:16]} {[%emt 00:00:13]} 13.
Be3 {[%clk 00:18:44]} {[%emt 00:00:20]} Qe7 {[%clk 00:15:41]} {[%emt 00:01:40]}
14. Qd2 {[%clk 00:18:09]} {[%emt 00:00:39]} Qf7 {[%clk 00:14:56]} {[%emt
00:00:51]} 15. Rab1 {[%clk 00:15:55]} {[%emt 00:02:20]} Rb8 {[%clk 00:14:59]}
{[%emt 00:00:02]} 16. Bf4 {[%clk 00:14:32]} {[%emt 00:01:27]} e5 {[%clk
00:13:58]} {[%emt 00:01:07]} 17. Bg3 {[%clk 00:14:32]} {[%emt 00:00:05]} h5
{[%clk 00:11:28]} {[%emt 00:02:33]} 18. Nh4 {[%clk 00:13:44]} {[%emt 00:00:53]}
1/2-1/2



[ePGN "0.1;DGT LiveChess/2.2.6"]

[Event "MČR juniorů a juniorek v rapid šachu 2024"]
[Site "Hotel Fit Fun, Harrachov, Czech Republic"]
[Date "2024.09.22"]
[Round "8.35"]
[White "Macova Marketa"]
[Black "Horvath Michal"]
[Result "1-0"]
[TimeControl "20+5"]
[WhiteFideId "23715588"]
[WhiteElo "1587"]
[BlackElo "1000"]

1. e4 {[%clk 00:20:09]} c6 {[%clk 00:20:13]} {[%emt 00:00:03]} 2. d4 {[%clk
00:20:11]} {[%emt 00:00:02]} d5 {[%clk 00:20:17]} {[%emt 00:00:01]} 3. exd5
{[%clk 00:20:14]} {[%emt 00:00:02]} cxd5 {[%clk 00:20:21]} {[%emt 00:00:01]} 4.
Bd3 {[%clk 00:20:10]} {[%emt 00:00:09]} Nc6 {[%clk 00:20:22]} {[%emt 00:00:05]}
5. Nf3 {[%clk 00:20:12]} {[%emt 00:00:03]} Bg4 {[%clk 00:20:24]} {[%emt
00:00:02]} 6. c3 {[%clk 00:20:15]} {[%emt 00:00:03]} e6 {[%clk 00:20:27]}
{[%emt 00:00:02]} 7. Bf4 {[%clk 00:20:02]} {[%emt 00:00:17]} Nf6 {[%clk
00:20:02]} {[%emt 00:00:30]} 8. Nbd2 {[%clk 00:20:01]} {[%emt 00:00:06]} Be7
{[%clk 00:19:31]} {[%emt 00:00:37]} 9. O-O {[%clk 00:19:49]} {[%emt 00:00:16]}
O-O {[%clk 00:19:11]} {[%emt 00:00:25]} 10. Qc2 {[%clk 00:19:34]} {[%emt
00:00:20]} h6 {[%clk 00:18:38]} {[%emt 00:00:38]} 11. Rfe1 {[%clk 00:18:44]}
{[%emt 00:00:55]} Rc8 {[%clk 00:18:36]} {[%emt 00:00:07]} 12. h3 {[%clk
00:18:13]} {[%emt 00:00:36]} Bxf3 {[%clk 00:18:28]} {[%emt 00:00:13]} 13. Nxf3
{[%clk 00:18:15]} {[%emt 00:00:03]} Nb4 {[%clk 00:17:57]} {[%emt 00:00:36]} 14.
Qd2 {[%clk 00:17:35]} {[%emt 00:00:45]} Nxd3 {[%emt 00:00:15]} 15. Qxd3 {[%clk
00:17:34]} {[%emt 00:00:03]} Ne4 {[%clk 00:16:47]} {[%emt 00:01:08]} 16. Ne5
{[%clk 00:16:10]} {[%emt 00:01:29]} Bd6 {[%clk 00:16:29]} {[%emt 00:00:24]} 17.
Qe3 {[%clk 00:13:50]} {[%emt 00:02:24]} f6 {[%clk 00:14:14]} {[%emt 00:02:20]}
18. Ng6 {[%clk 00:13:34]} {[%emt 00:00:20]} Bxf4 {[%clk 00:13:38]} {[%emt
00:00:42]} 19. Qxf4 {[%clk 00:13:25]} {[%emt 00:00:14]} Re8 {[%clk 00:11:43]}
{[%emt 00:02:00]} 20. h4 {[%clk 00:13:09]} {[%emt 00:00:20]} Qb6 {[%clk
00:09:58]} {[%emt 00:01:52]} 21. Re2 {[%clk 00:12:34]} {[%emt 00:00:39]} e5
{[%clk 00:09:39]} {[%emt 00:00:23]} 22. dxe5 {[%clk 00:12:06]} {[%emt
00:00:33]} fxe5 {[%clk 00:09:40]} {[%emt 00:00:05]} 23. Nxe5 {[%clk 00:11:36]}
{[%emt 00:00:35]} Rf8 {[%clk 00:09:04]} {[%emt 00:00:41]} 24. Qe3 {[%clk
00:09:52]} {[%emt 00:01:49]} Qxe3 {[%clk 00:07:29]} {[%emt 00:01:39]} 25. Rxe3
{[%clk 00:05:46]} {[%emt 00:04:11]} Nxf2 {[%clk 00:06:58]} {[%emt 00:00:37]} 26.
Ng6 {[%clk 00:05:40]} {[%emt 00:00:12]} Rf7 {[%clk 00:05:53]} {[%emt 00:01:09]}
27. Ne7+ {[%clk 00:05:02]} {[%emt 00:00:43]} Rxe7 {[%clk 00:05:35]} {[%emt
00:00:24]} 28. Rxe7 {[%clk 00:05:05]} {[%emt 00:00:01]} Ne4 {[%clk 00:05:37]}
{[%emt 00:00:03]} 29. Rxb7 {[%clk 00:04:57]} {[%emt 00:00:13]} a5 {[%clk
00:05:17]} {[%emt 00:00:25]} 30. Rf1 {[%clk 00:04:52]} {[%emt 00:00:10]} Nd6
{[%clk 00:04:47]} {[%emt 00:00:35]} 31. Rd7 {[%clk 00:04:26]} {[%emt 00:00:30]}
Ne8 {[%clk 00:04:33]} {[%emt 00:00:21]} 32. Rxd5 {[%clk 00:03:33]} {[%emt
00:00:58]} Rb8 {[%clk 00:03:59]} {[%emt 00:00:39]} 33. b3 {[%clk 00:03:15]}
{[%emt 00:00:22]} Nf6 {[%clk 00:03:59]} {[%emt 00:00:05]} 34. Rxa5 {[%clk
00:03:10]} {[%emt 00:00:11]} 1-0



[ePGN "0.1;DGT LiveChess/2.2.6"]

[Event "MČR juniorů a juniorek v rapid šachu 2024"]
[Site "Hotel Fit Fun, Harrachov, Czech Republic"]
[Date "2024.09.22"]
[Round "8.36"]
[White "Musil Tomas"]
[Black "Taborska Aneta"]
[Result "1-0"]
[TimeControl "20+5"]
[WhiteFideId "23762888"]
[BlackFideId "23733039"]
[WhiteElo "1519"]
[BlackElo "1582"]

1. e4 {[%clk 00:20:08]} {[%emt 00:00:01]} d5 {[%clk 00:20:09]} {[%emt
00:00:01]} 2. exd5 {[%clk 00:20:01]} {[%emt 00:00:12]} Qxd5 {[%clk 00:20:10]}
{[%emt 00:00:03]} 3. d4 {[%clk 00:19:57]} {[%emt 00:00:09]} Nc6 {[%clk
00:20:10]} {[%emt 00:00:05]} 4. c4 {[%clk 00:20:00]} {[%emt 00:00:02]} Qxd4
{[%clk 00:20:04]} {[%emt 00:00:11]} 5. Qxd4 {[%clk 00:20:03]} {[%emt 00:00:03]}
Nxd4 {[%clk 00:20:07]} {[%emt 00:00:02]} 6. Bd3 {[%clk 00:19:57]} {[%emt
00:00:11]} Be6 {[%clk 00:19:41]} {[%emt 00:00:31]} 7. b3 {[%clk 00:19:49]}
{[%emt 00:00:14]} O-O-O {[%clk 00:19:39]} {[%emt 00:00:05]} 8. Ne2 {[%clk
00:19:50]} {[%emt 00:00:05]} Nxe2 {[%clk 00:19:28]} {[%emt 00:00:16]} 9. Bxe2
{[%clk 00:19:53]} {[%emt 00:00:01]} g6 {[%clk 00:19:29]} {[%emt 00:00:04]} 10.
Bb2 {[%clk 00:19:56]} {[%emt 00:00:03]} Nf6 {[%clk 00:19:31]} {[%emt 00:00:03]}
11. O-O {[%clk 00:19:52]} {[%emt 00:00:08]} Bg7 {[%clk 00:19:34]} {[%emt
00:00:02]} 12. Nc3 {[%clk 00:19:36]} {[%emt 00:00:21]} h5 {[%clk 00:19:19]}
{[%emt 00:00:20]} 13. Rfd1 {[%clk 00:18:56]} {[%emt 00:00:45]} Bf5 {[%clk
00:18:10]} {[%emt 00:01:13]} 14. Nb5 {[%clk 00:18:29]} {[%emt 00:00:33]} Rxd1+
{[%clk 00:17:26]} {[%emt 00:00:49]} 15. Rxd1 {[%clk 00:18:33]} {[%emt
00:00:02]} Kb8 {[%clk 00:17:19]} {[%emt 00:00:11]} 16. Be5 {[%clk 00:18:29]}
{[%emt 00:00:09]} a6 {[%clk 00:17:01]} {[%emt 00:00:24]} 17. Nxc7 {[%clk
00:18:19]} {[%emt 00:00:15]} Ka7 {[%clk 00:17:04]} {[%emt 00:00:01]} 18. Bd4+
{[%clk 00:17:37]} {[%emt 00:00:47]} Kb8 {[%clk 00:17:04]} {[%emt 00:00:06]} 19.
Be5 {[%clk 00:17:38]} {[%emt 00:00:04]} Ka7 {[%clk 00:16:52]} {[%emt 00:00:17]}
20. b4 {[%clk 00:17:24]} {[%emt 00:00:19]} Bh6 {[%clk 00:16:37]} {[%emt
00:00:20]} 21. b5 {[%clk 00:16:51]} {[%emt 00:00:38]} axb5 {[%clk 00:16:30]}
{[%emt 00:00:12]} 22. cxb5 {[%clk 00:16:49]} {[%emt 00:00:07]} Rg8 {[%clk
00:15:56]} {[%emt 00:00:35]} 23. Bd4+ {[%clk 00:16:43]} {[%emt 00:00:15]} Kb8
{[%clk 00:15:57]} {[%emt 00:00:04]} 24. b6 {[%clk 00:16:46]} {[%emt 00:00:02]}
Bf4 {[%clk 00:15:44]} {[%emt 00:00:15]} 25. Nb5 {[%clk 00:16:32]} {[%emt
00:00:22]} Bd7 {[%clk 00:15:17]} {[%emt 00:00:29]} 26. Nc3 {[%clk 00:15:55]}
{[%emt 00:00:45]} Rd8 {[%clk 00:14:38]} {[%emt 00:00:43]} 27. g3 {[%clk
00:14:29]} {[%emt 00:01:31]} Bd6 {[%clk 00:14:14]} {[%emt 00:00:29]} 28. Bxf6
{[%clk 00:14:16]} {[%emt 00:00:18]} exf6 {[%clk 00:14:08]} {[%emt 00:00:12]} 29.
Rxd6 {[%clk 00:14:19]} {[%emt 00:00:02]} Kc8 {[%clk 00:14:10]} {[%emt
00:00:02]} 30. Nd5 {[%clk 00:13:46]} {[%emt 00:00:38]} f5 {[%clk 00:13:56]}
{[%emt 00:00:20]} 31. Ne7+ {[%clk 00:13:43]} {[%emt 00:00:07]} Kb8 {[%clk
00:13:56]} {[%emt 00:00:06]} 32. Bb5 {[%clk 00:13:41]} {[%emt 00:00:06]} 1-0



[ePGN "0.1;DGT LiveChess/2.2.6"]

[Event "MČR juniorů a juniorek v rapid šachu 2024"]
[Site "Hotel Fit Fun, Harrachov, Czech Republic"]
[Date "2024.09.22"]
[Round "8.4"]
[White "Markina Sofiia"]
[Black "Slaby Matej"]
[Result "1/2-1/2"]
[TimeControl "20+5"]
[WhiteFideId "23744014"]
[BlackFideId "23734876"]
[WhiteElo "1885"]
[BlackElo "1948"]

1. e4 {[%clk 00:20:08]} {[%emt 00:00:02]} d5 {[%clk 00:20:09]} {[%emt
00:00:01]} 2. exd5 {[%clk 00:20:12]} {[%emt 00:00:01]} Qxd5 {[%clk 00:20:13]} 3.
Nc3 {[%clk 00:20:15]} {[%emt 00:00:02]} Qd6 {[%clk 00:20:17]} 4. d4 {[%clk
00:20:15]} {[%emt 00:00:06]} Nf6 {[%clk 00:20:20]} {[%emt 00:00:02]} 5. Nf3
{[%clk 00:20:10]} {[%emt 00:00:10]} Bg4 {[%clk 00:20:23]} {[%emt 00:00:02]} 6.
Be3 {[%clk 00:20:01]} {[%emt 00:00:14]} Nc6 {[%clk 00:20:10]} {[%emt 00:00:18]}
7. Be2 {[%clk 00:19:17]} {[%emt 00:00:48]} Bxf3 {[%clk 00:18:52]} {[%emt
00:01:23]} 8. Bxf3 {[%clk 00:19:16]} {[%emt 00:00:07]} O-O-O {[%clk 00:18:55]}
{[%emt 00:00:02]} 9. Ne2 {[%clk 00:14:47]} {[%emt 00:04:34]} e5 {[%clk
00:18:28]} {[%emt 00:00:32]} 10. Bxc6 {[%clk 00:13:33]} {[%emt 00:01:19]} Qxc6
{[%clk 00:18:30]} {[%emt 00:00:03]} 11. O-O {[%clk 00:13:33]} {[%emt 00:00:05]}
Bc5 {[%clk 00:17:34]} {[%emt 00:01:01]} 12. c3 {[%clk 00:13:22]} {[%emt
00:00:17]} exd4 {[%clk 00:17:26]} {[%emt 00:00:12]} 13. cxd4 {[%clk 00:12:52]}
{[%emt 00:00:35]} Bd6 {[%clk 00:17:05]} {[%emt 00:00:26]} 14. Rc1 {[%clk
00:12:27]} {[%emt 00:00:30]} Qd5 {[%clk 00:16:57]} {[%emt 00:00:13]} 15. Nf4
{[%clk 00:11:10]} {[%emt 00:01:22]} Qf5 {[%clk 00:16:48]} {[%emt 00:00:15]} 16.
Qf3 {[%clk 00:10:13]} {[%emt 00:01:01]} g5 {[%clk 00:14:27]} {[%emt 00:02:26]}
17. Ne2 {[%clk 00:07:53]} {[%emt 00:02:25]} Qxf3 {[%clk 00:14:05]} {[%emt
00:00:27]} 18. gxf3 {[%clk 00:07:57]} {[%emt 00:00:01]} g4 {[%clk 00:13:09]}
{[%emt 00:01:02]} 19. Bg5 {[%clk 00:06:48]} {[%emt 00:01:14]} gxf3 {[%clk
00:13:11]} {[%emt 00:00:03]} 20. Ng3 {[%clk 00:06:35]} {[%emt 00:00:17]} Nd5
{[%clk 00:10:56]} {[%emt 00:02:21]} 21. Bxd8 {[%clk 00:05:57]} {[%emt
00:00:43]} Rxd8 {[%clk 00:10:46]} {[%emt 00:00:15]} 22. Nf5 {[%clk 00:05:16]}
{[%emt 00:00:46]} Bf4 {[%clk 00:09:45]} {[%emt 00:01:06]} 23. Rc5 {[%clk
00:04:22]} {[%emt 00:00:59]} Rg8+ {[%clk 00:09:02]} {[%emt 00:00:47]} 24. Ng3
{[%clk 00:04:10]} {[%emt 00:00:17]} c6 {[%clk 00:08:53]} {[%emt 00:00:14]} 25.
Re1 {[%clk 00:03:54]} {[%emt 00:00:22]} h5 {[%clk 00:07:47]} {[%emt 00:01:11]}
26. Kf1 {[%clk 00:03:36]} {[%emt 00:00:23]} h4 {[%clk 00:07:16]} {[%emt
00:00:36]} 27. Rxd5 {[%clk 00:03:00]} {[%emt 00:00:41]} cxd5 {[%clk 00:07:20]}
28. Nf5 {[%clk 00:03:03]} {[%emt 00:00:02]} Rg2 {[%clk 00:06:30]} {[%emt
00:00:55]} 29. Nxh4 {[%clk 00:02:44]} {[%emt 00:00:24]} Rxh2 {[%clk 00:06:33]}
{[%emt 00:00:02]} 30. Nxf3 {[%clk 00:02:48]} {[%emt 00:00:01]} Rh1+ {[%clk
00:06:37]} {[%emt 00:00:01]} 31. Ke2 {[%clk 00:02:52]} {[%emt 00:00:01]} Rxe1+
{[%clk 00:06:38]} {[%emt 00:00:03]} 32. Kxe1 {[%clk 00:02:53]} {[%emt
00:00:04]} Kd7 {[%clk 00:06:36]} {[%emt 00:00:08]} 33. Ke2 {[%clk 00:02:53]}
{[%emt 00:00:05]} Ke6 {[%clk 00:06:16]} {[%emt 00:00:25]} 34. Kd3 {[%clk
00:02:53]} {[%emt 00:00:05]} Kf5 {[%clk 00:06:18]} {[%emt 00:00:03]} 35. b3
{[%clk 00:02:29]} {[%emt 00:00:29]} b5 {[%clk 00:05:56]} {[%emt 00:00:27]} 36.
b4 {[%clk 00:02:23]} {[%emt 00:00:11]} Bd6 {[%clk 00:05:55]} {[%emt 00:00:06]}
37. a3 {[%clk 00:02:20]} {[%emt 00:00:08]} Kf4 {[%emt 00:00:51]} 38. Ke2 {[%clk
00:02:05]} {[%emt 00:00:18]} Kg4 {[%clk 00:04:46]} {[%emt 00:00:29]} 39. Ke3
{[%clk 00:01:41]} {[%emt 00:00:30]} Bf4+ {[%clk 00:04:45]} {[%emt 00:00:06]} 40.
Ke2 {[%clk 00:01:45]} {[%emt 00:00:01]} Kf5 {[%clk 00:04:29]} {[%emt 00:00:21]}
41. Kd3 {[%clk 00:01:34]} {[%emt 00:00:16]} Bc1 {[%clk 00:04:09]} {[%emt
00:00:24]} 42. Ne5 {[%clk 00:01:35]} {[%emt 00:00:04]} Bxa3 {[%clk 00:04:10]}
{[%emt 00:00:03]} 43. Nc6 {[%clk 00:01:35]} {[%emt 00:00:06]} a6 {[%clk
00:04:10]} {[%emt 00:00:06]} 44. Kc3 {[%clk 00:01:00]} {[%emt 00:00:40]} Ke4
{[%clk 00:03:17]} {[%emt 00:00:58]} 45. Nb8 {[%clk 00:00:59]} {[%emt 00:00:07]}
Bxb4+ {[%clk 00:03:10]} {[%emt 00:00:12]} 46. Kxb4 {[%clk 00:00:58]} {[%emt
00:00:05]} Kxd4 {[%clk 00:03:12]} {[%emt 00:00:02]} 47. Nxa6 {[%clk 00:01:01]}
{[%emt 00:00:03]} Ke4 {[%clk 00:02:54]} {[%emt 00:00:23]} 48. Nc7 {[%clk
00:00:38]} {[%emt 00:00:28]} d4 {[%clk 00:02:52]} {[%emt 00:00:08]} 49. Nxb5
{[%clk 00:00:40]} {[%emt 00:00:04]} d3 {[%clk 00:02:54]} {[%emt 00:00:02]} 50.
Kc3 {[%clk 00:00:43]} {[%emt 00:00:02]} Kf3 {[%clk 00:02:57]} {[%emt 00:00:02]}
51. Kxd3 {[%clk 00:00:45]} {[%emt 00:00:03]} Kxf2 {[%clk 00:03:00]} {[%emt
00:00:03]} 52. Ke4 {[%clk 00:00:48]} {[%emt 00:00:03]} f5+ {[%clk 00:03:03]}
{[%emt 00:00:02]} 53. Kxf5 {[%emt 00:00:03]} 1/2-1/2



[ePGN "0.1;DGT LiveChess/2.2.6"]

[Event "MČR juniorů a juniorek v rapid šachu 2024"]
[Site "Hotel Fit Fun, Harrachov, Czech Republic"]
[Date "2024.09.22"]
[Round "8.5"]
[White "Hozda Max"]
[Black "Pejrimovska Viola Ruby"]
[Result "1-0"]
[TimeControl "20+5"]
[WhiteFideId "23725958"]
[BlackFideId "23709529"]
[WhiteElo "1939"]
[BlackElo "1876"]

1. d4 {[%clk 00:20:08]} {[%emt 00:00:02]} Nf6 {[%clk 00:20:09]} {[%emt
00:00:02]} 2. c4 {[%clk 00:20:12]} g6 {[%clk 00:20:04]} {[%emt 00:00:11]} 3.
Nf3 {[%clk 00:20:15]} {[%emt 00:00:01]} Bg7 {[%clk 00:20:08]} {[%emt 00:00:01]}
4. g3 {[%clk 00:20:19]} {[%emt 00:00:01]} b6 {[%clk 00:19:06]} {[%emt
00:01:06]} 5. Bg2 {[%clk 00:20:19]} {[%emt 00:00:04]} Bb7 {[%clk 00:19:10]}
{[%emt 00:00:01]} 6. O-O {[%clk 00:20:13]} {[%emt 00:00:11]} O-O {[%clk
00:19:11]} {[%emt 00:00:04]} 7. b3 {[%clk 00:20:12]} {[%emt 00:00:06]} d6
{[%clk 00:19:05]} {[%emt 00:00:11]} 8. Bb2 {[%clk 00:20:14]} {[%emt 00:00:03]}
Nfd7 {[%clk 00:17:31]} {[%emt 00:01:40]} 9. Nc3 {[%clk 00:19:49]} {[%emt
00:00:30]} e5 {[%clk 00:17:04]} {[%emt 00:00:31]} 10. e3 {[%clk 00:19:47]} Nc6
{[%clk 00:16:56]} {[%emt 00:00:21]} 11. a3 {[%clk 00:19:07]} {[%emt 00:00:45]}
f5 {[%clk 00:16:01]} {[%emt 00:01:00]} 12. dxe5 {[%clk 00:17:38]} {[%emt
00:01:34]} dxe5 {[%clk 00:15:50]} {[%emt 00:00:16]} 13. b4 {[%clk 00:14:28]}
{[%emt 00:03:15]} e4 {[%clk 00:15:38]} {[%emt 00:00:16]} 14. Nd4 {[%clk
00:14:06]} {[%emt 00:00:26]} Nxd4 {[%clk 00:14:36]} {[%emt 00:01:08]} 15. exd4
{[%clk 00:14:05]} {[%emt 00:00:06]} Qf6 {[%clk 00:12:18]} {[%emt 00:02:23]} 16.
Qb3 {[%clk 00:13:00]} {[%emt 00:01:10]} Kh8 {[%clk 00:11:37]} {[%emt 00:00:46]}
17. Rad1 {[%clk 00:11:07]} {[%emt 00:01:58]} Rae8 {[%clk 00:11:28]} {[%emt
00:00:14]} 18. Ne2 {[%clk 00:10:15]} {[%emt 00:00:57]} g5 {[%clk 00:10:40]}
{[%emt 00:00:52]} 19. f4 {[%clk 00:09:13]} {[%emt 00:01:07]} exf3 {[%clk
00:08:32]} {[%emt 00:02:14]} 20. Bxf3 {[%clk 00:09:16]} {[%emt 00:00:02]} Bxf3
{[%clk 00:07:48]} {[%emt 00:00:49]} 21. Qxf3 {[%clk 00:09:18]} {[%emt
00:00:02]} f4 {[%emt 00:02:12]} 22. gxf4 {[%clk 00:07:48]} {[%emt 00:00:04]}
gxf4 {[%emt 00:00:55]} 23. Nxf4 {[%emt 00:00:56]} Bh6 {[%emt 00:00:25]} 24. Bc1
{[%emt 00:02:09]} Qf5 {[%clk 00:04:33]} 25. Qd5 {[%clk 00:04:00]} {[%emt
00:02:33]} Qg4+ {[%emt 00:01:57]} 26. Ng2 {[%emt 00:00:45]} Nf6 {[%emt
00:00:55]} 27. Qf3 {[%emt 00:00:33]} Qg6 {[%emt 00:01:02]} 28. Bxh6 {[%clk
00:01:54]} {[%emt 00:00:01]} Qxh6 {[%emt 00:00:47]} 29. Rde1 {[%emt 00:01:51]}
Rd8 {[%emt 00:00:25]} 30. Re6 {[%emt 00:00:10]} Rd6 {[%emt 00:00:06]} 31. Rxd6
{[%clk 00:00:44]} {[%emt 00:00:10]} cxd6 {[%emt 00:00:03]} 32. Qf4 {[%clk
00:00:37]} {[%emt 00:00:08]} Qg7 {[%clk 00:00:15]} {[%emt 00:00:03]} 33. Qxd6
{[%clk 00:00:32]} {[%emt 00:00:10]} Rg8 {[%clk 00:00:14]} {[%emt 00:00:06]} 34.
Qxf6 {[%clk 00:00:35]} {[%emt 00:00:02]} Qxf6 {[%clk 00:00:14]} {[%emt
00:00:05]} 35. Rxf6 {[%clk 00:00:38]} {[%emt 00:00:02]} Rg4 {[%clk 00:00:16]}
{[%emt 00:00:03]} 36. Rf4 {[%clk 00:00:41]} {[%emt 00:00:02]} Rg6 {[%clk
00:00:17]} {[%emt 00:00:04]} 37. Kf2 {[%clk 00:00:45]} {[%emt 00:00:02]} Re6
{[%clk 00:00:20]} {[%emt 00:00:02]} 38. d5 {[%clk 00:00:47]} {[%emt 00:00:02]}
Rd6 {[%clk 00:00:19]} {[%emt 00:00:06]} 39. Ne3 {[%clk 00:00:50]} {[%emt
00:00:02]} Kg8 {[%clk 00:00:22]} {[%emt 00:00:01]} 40. c5 {[%clk 00:00:54]}
{[%emt 00:00:02]} bxc5 {[%clk 00:00:24]} {[%emt 00:00:03]} 41. bxc5 {[%clk
00:00:57]} {[%emt 00:00:02]} Ra6 {[%clk 00:00:28]} 42. a4 {[%clk 00:01:00]}
{[%emt 00:00:02]} 1-0



[ePGN "0.1;DGT LiveChess/2.2.6"]